[Event "*** SCC Grand Prix: Titled Tuesday Blitz"]
[Site "Chess.com"]
[Date "2020.07.07"]
[Round "8"]
[White "Sychev_Klementy"]
[Black "Azatic"]
[Result "0-1"]
[WhiteElo "2771"]
[BlackElo "2515"]
[TimeControl "180+1"]
[EndTime "11:37:48 PDT"]
[Termination "Azatic won on time"]

1. e4 {[%clk 0:03:00.9]} 1... c5 {[%clk 0:03:00.1]} 2. Nf3 {[%clk 0:02:59.9]}
2... e6 {[%clk 0:03:00.6]} 3. g3 {[%clk 0:02:59.4]} 3... Nc6 {[%clk 0:03:00.6]}
4. Bg2 {[%clk 0:02:59.3]} 4... Nf6 {[%clk 0:03:00.1]} 5. Qe2 {[%clk 0:02:59.4]}
5... d6 {[%clk 0:02:58.6]} 6. O-O {[%clk 0:02:57.8]} 6... Qc7 {[%clk 0:02:58.1]}
7. c3 {[%clk 0:02:57.7]} 7... e5 {[%clk 0:02:58.2]} 8. Rd1 {[%clk 0:02:44.4]}
8... Be7 {[%clk 0:02:58.2]} 9. Na3 {[%clk 0:02:27.8]} 9... O-O {[%clk
0:02:55.2]} 10. Nc2 {[%clk 0:02:20.4]} 10... Re8 {[%clk 0:02:48]} 11. d3 {[%clk
0:01:52.4]} 11... h6 {[%clk 0:02:30.3]} 12. Ne3 {[%clk 0:01:46.4]} 12... Bf8
{[%clk 0:02:28.7]} 13. a3 {[%clk 0:01:42]} 13... Be6 {[%clk 0:02:27.2]} 14. b4
{[%clk 0:01:39.1]} 14... a6 {[%clk 0:02:17.5]} 15. Bb2 {[%clk 0:01:38.8]} 15...
Rad8 {[%clk 0:02:15.5]} 16. Rac1 {[%clk 0:01:29.8]} 16... d5 {[%clk 0:01:45.6]}
17. c4 {[%clk 0:00:45.6]} 17... dxe4 {[%clk 0:01:32.3]} 18. dxe4 {[%clk
0:00:45.8]} 18... Nd4 {[%clk 0:01:22.4]} 19. Nxd4 {[%clk 0:00:34.5]} 19... cxd4
{[%clk 0:00:42.7]} 20. Nd5 {[%clk 0:00:33.5]} 20... Bxd5 {[%clk 0:00:43.2]} 21.
cxd5 {[%clk 0:00:33]} 21... Qb6 {[%clk 0:00:43.1]} 22. Qd3 {[%clk 0:00:27.2]}
22... Rc8 {[%clk 0:00:40.9]} 23. h3 {[%clk 0:00:26.1]} 23... a5 {[%clk
0:00:38.8]} 24. b5 {[%clk 0:00:24.9]} 24... Nd7 {[%clk 0:00:29.2]} 25. Bf1
{[%clk 0:00:17]} 25... Nc5 {[%clk 0:00:27.4]} 26. Qf3 {[%clk 0:00:15.2]} 26...
a4 {[%clk 0:00:20.7]} 27. h4 {[%clk 0:00:12.2]} 27... Nb3 {[%clk 0:00:19.9]} 28.
Rxc8 {[%clk 0:00:12.3]} 28... Rxc8 {[%clk 0:00:20.8]} 29. Bd3 {[%clk 0:00:12.6]}
29... Rc5 {[%clk 0:00:14.5]} 30. Kg2 {[%clk 0:00:12]} 30... Qc7 {[%clk
0:00:10.4]} 31. Qg4 {[%clk 0:00:11.5]} 31... Qc8 {[%clk 0:00:08.1]} 32. Qxc8
{[%clk 0:00:11]} 32... Rxc8 {[%clk 0:00:09]} 33. Kf3 {[%clk 0:00:11.4]} 33...
Bd6 {[%clk 0:00:09.3]} 34. Ke2 {[%clk 0:00:11.3]} 34... Kf8 {[%clk 0:00:09.7]}
35. Rg1 {[%clk 0:00:11.2]} 35... Ke7 {[%clk 0:00:09.7]} 36. Kd1 {[%clk
0:00:11.1]} 36... g6 {[%clk 0:00:09.6]} 37. g4 {[%clk 0:00:11.1]} 37... Nc5
{[%clk 0:00:09.9]} 38. Bc2 {[%clk 0:00:08.9]} 38... d3 {[%clk 0:00:10.3]} 39.
Bb1 {[%clk 0:00:09.2]} 39... Nxe4 {[%clk 0:00:10.8]} 40. f3 {[%clk 0:00:07.3]}
40... Nc5 {[%clk 0:00:09.8]} 41. Bc1 {[%clk 0:00:07.7]} 41... e4 {[%clk
0:00:06.4]} 42. Re1 {[%clk 0:00:06.6]} 42... f5 {[%clk 0:00:06.1]} 43. gxf5
{[%clk 0:00:06.3]} 43... gxf5 {[%clk 0:00:07]} 44. Bxh6 {[%clk 0:00:05.8]} 44...
Bg3 {[%clk 0:00:04.4]} 45. Rg1 {[%clk 0:00:05]} 45... Bxh4 {[%clk 0:00:04.3]}
46. Rg7+ {[%clk 0:00:04.7]} 46... Kd6 {[%clk 0:00:04.6]} 47. Bf4+ {[%clk
0:00:03.6]} 47... Kxd5 {[%clk 0:00:04.5]} 48. fxe4+ {[%clk 0:00:03.6]} 48...
fxe4 {[%clk 0:00:04.3]} 49. Rh7 {[%clk 0:00:03.6]} 49... Bf6 {[%clk 0:00:03.4]}
50. Rh5+ {[%clk 0:00:03.8]} 50... Kc4 {[%clk 0:00:02.7]} 51. Rh6 {[%clk
0:00:03.3]} 51... Rg8 {[%clk 0:00:01.8]} 52. Ba2+ {[%clk 0:00:03.8]} 52... Nb3
{[%clk 0:00:02.3]} 53. Bxb3+ {[%clk 0:00:03.6]} 53... Kxb3 {[%clk 0:00:02.2]}
54. Rxf6 {[%clk 0:00:03.7]} 54... Rg2 {[%clk 0:00:02.8]} 55. Re6 {[%clk
0:00:02.8]} 55... Kxa3 {[%clk 0:00:03.1]} 56. Rxe4 {[%clk 0:00:03]} 56... Kb3
{[%clk 0:00:03.6]} 57. Rd4 {[%clk 0:00:03.4]} 57... Kc3 {[%clk 0:00:03.5]} 0-1

[Event "*** SCC Grand Prix: Titled Tuesday Blitz"]
[Site "Chess.com"]
[Date "2020.07.07"]
[Round "8"]
[White "FMOlexandrProhorov"]
[Black "CyberdelChess"]
[Result "0-1"]
[WhiteElo "2124"]
[BlackElo "2268"]
[TimeControl "180+1"]
[EndTime "11:37:49 PDT"]
[Termination "CyberdelChess won by resignation"]

1. Nf3 {[%clk 0:03:00.9]} 1... g6 {[%clk 0:02:59.2]} 2. c4 {[%clk 0:02:57.9]}
2... Bg7 {[%clk 0:02:59.1]} 3. Nc3 {[%clk 0:02:58.1]} 3... c5 {[%clk 0:02:52.5]}
4. g3 {[%clk 0:02:53.9]} 4... Nc6 {[%clk 0:02:50.3]} 5. Bg2 {[%clk 0:02:54.3]}
5... e5 {[%clk 0:02:48.5]} 6. O-O {[%clk 0:02:50.3]} 6... Nge7 {[%clk
0:02:48.7]} 7. d3 {[%clk 0:02:50.1]} 7... O-O {[%clk 0:02:47.5]} 8. a3 {[%clk
0:02:40.7]} 8... a5 {[%clk 0:02:46.6]} 9. Rb1 {[%clk 0:02:38]} 9... d6 {[%clk
0:02:43.8]} 10. Ne1 {[%clk 0:02:37.5]} 10... Rb8 {[%clk 0:02:25.4]} 11. Nc2
{[%clk 0:02:36.7]} 11... Be6 {[%clk 0:02:25.1]} 12. b4 {[%clk 0:02:23.1]} 12...
axb4 {[%clk 0:02:19.2]} 13. axb4 {[%clk 0:02:22.8]} 13... b6 {[%clk 0:02:17.9]}
14. Bg5 {[%clk 0:02:09.4]} 14... f6 {[%clk 0:02:05.7]} 15. Bd2 {[%clk
0:02:03.8]} 15... Qd7 {[%clk 0:02:04]} 16. bxc5 {[%clk 0:01:43.5]} 16... bxc5
{[%clk 0:02:04.9]} 17. Ne3 {[%clk 0:01:43.4]} 17... Nd4 {[%clk 0:02:00.6]} 18.
Ned5 {[%clk 0:01:40.3]} 18... Nxd5 {[%clk 0:01:56.6]} 19. Bxd5 {[%clk
0:01:23.5]} 19... Bxd5 {[%clk 0:01:52.5]} 20. Rxb8 {[%clk 0:01:10.1]} 20... Rxb8
{[%clk 0:01:53.4]} 21. Nxd5 {[%clk 0:01:10.3]} 21... Rb2 {[%clk 0:01:44.5]} 22.
Re1 {[%clk 0:00:58]} 22... h5 {[%clk 0:01:20.8]} 23. Bc3 {[%clk 0:00:52.3]}
23... Ra2 {[%clk 0:01:12.6]} 24. Bxd4 {[%clk 0:00:43.5]} 24... exd4 {[%clk
0:01:13.5]} 25. Qb3 {[%clk 0:00:40.6]} 25... Ra8 {[%clk 0:01:10.1]} 26. Rb1
{[%clk 0:00:35.4]} 26... Re8 {[%clk 0:01:06.5]} 27. e4 {[%clk 0:00:16.2]} 27...
dxe3 {[%clk 0:01:05.9]} 28. Nxe3 {[%clk 0:00:15.8]} 28... f5 {[%clk 0:00:56.6]}
29. Qb7 {[%clk 0:00:15.1]} 29... Qe6 {[%clk 0:00:53.2]} 30. Qd5 {[%clk
0:00:14.4]} 30... Bd4 {[%clk 0:00:51.7]} 31. Qxe6+ {[%clk 0:00:10]} 31... Rxe6
{[%clk 0:00:52.2]} 32. Re1 {[%clk 0:00:07.3]} 32... Kf7 {[%clk 0:00:46.7]} 33.
Nc2 {[%clk 0:00:07.3]} 33... Rxe1+ {[%clk 0:00:42.2]} 34. Nxe1 {[%clk
0:00:08.2]} 34... h4 {[%clk 0:00:40.6]} 35. Kg2 {[%clk 0:00:07.1]} 35... hxg3
{[%clk 0:00:40.8]} 36. hxg3 {[%clk 0:00:06.8]} 36... Ke6 {[%clk 0:00:39.7]} 37.
Nc2 {[%clk 0:00:06.1]} 37... Bf6 {[%clk 0:00:37.6]} 38. Kf3 {[%clk 0:00:05.6]}
38... Ke5 {[%clk 0:00:36.9]} 39. Ke3 {[%clk 0:00:03.8]} 39... Bd8 {[%clk
0:00:29.6]} 40. f4+ {[%clk 0:00:03.8]} 40... Ke6 {[%clk 0:00:29.7]} 41. Na3
{[%clk 0:00:03.9]} 41... Ba5 {[%clk 0:00:25.3]} 42. Nb5 {[%clk 0:00:04.2]} 42...
Be1 {[%clk 0:00:24.5]} 43. Kf3 {[%clk 0:00:03.5]} 43... Ba5 {[%clk 0:00:19.8]}
44. Na7 {[%clk 0:00:03.7]} 44... d5 {[%clk 0:00:18.4]} 45. cxd5+ {[%clk
0:00:03.2]} 45... Kxd5 {[%clk 0:00:18.8]} 46. Nb5 {[%clk 0:00:02.1]} 46... Bd2
{[%clk 0:00:17.3]} 47. g4 {[%clk 0:00:01.8]} 47... Bc1 {[%clk 0:00:16.1]} 48.
gxf5 {[%clk 0:00:02.1]} 48... gxf5 {[%clk 0:00:16.8]} 49. Nc3+ {[%clk
0:00:01.8]} 49... Kd4 {[%clk 0:00:16.7]} 50. Ne2+ {[%clk 0:00:01.3]} 50... Kxd3
{[%clk 0:00:17]} 51. Nxc1+ {[%clk 0:00:01.3]} 51... Kd2 {[%clk 0:00:16.3]} 52.
Ne2 {[%clk 0:00:02.2]} 52... c4 {[%clk 0:00:16.4]} 53. Kf2 {[%clk 0:00:02.5]}
53... c3 {[%clk 0:00:16.5]} 54. Nxc3 {[%clk 0:00:02.9]} 54... Kxc3 {[%clk
0:00:17.4]} 55. Ke3 {[%clk 0:00:02.2]} 55... Kc4 {[%clk 0:00:17.3]} 56. Ke2
{[%clk 0:00:02]} 56... Kd4 {[%clk 0:00:17.7]} 57. Kf2 {[%clk 0:00:01.4]} 57...
Ke4 {[%clk 0:00:17.2]} 58. Ke2 {[%clk 0:00:01.8]} 58... Kd4 {[%clk 0:00:13.9]}
59. Kf2 {[%clk 0:00:02.7]} 59... Kd3 {[%clk 0:00:14.2]} 60. Kf1 {[%clk
0:00:02.4]} 60... Ke3 {[%clk 0:00:14]} 61. Kg2 {[%clk 0:00:02.9]} 61... Ke2
{[%clk 0:00:14]} 62. Kg1 {[%clk 0:00:03.2]} 62... Kf3 {[%clk 0:00:13.9]} 63. Kf1
{[%clk 0:00:03.5]} 63... Kg3 {[%clk 0:00:13.6]} 64. Kg1 {[%clk 0:00:03.8]} 64...
Kxf4 {[%clk 0:00:14.5]} 65. Kf2 {[%clk 0:00:04]} 65... Ke4 {[%clk 0:00:14.5]}
66. Ke2 {[%clk 0:00:04.3]} 66... f4 {[%clk 0:00:13.9]} 67. Kf2 {[%clk
0:00:04.7]} 67... f3 {[%clk 0:00:14.3]} 68. Kf1 {[%clk 0:00:04.6]} 68... Ke3
{[%clk 0:00:14.9]} 69. Ke1 {[%clk 0:00:04.9]} 69... Kf4 {[%clk 0:00:15.3]} 70.
Kf1 {[%clk 0:00:05.2]} 70... Kg3 {[%clk 0:00:16.2]} 71. Kg1 {[%clk 0:00:05.4]}
71... Kg4 {[%clk 0:00:15.9]} 72. Kf1 {[%clk 0:00:05.6]} 72... Kf4 {[%clk
0:00:16.4]} 73. Kg1 {[%clk 0:00:05.8]} 73... Ke3 {[%clk 0:00:16.8]} 74. Kf1
{[%clk 0:00:05.3]} 74... f2 {[%clk 0:00:17.2]} 75. Kg2 {[%clk 0:00:05.6]} 75...
Ke2 {[%clk 0:00:18.1]} 76. Kg3 {[%clk 0:00:05.4]} 76... f1=Q {[%clk 0:00:19]}
77. Kg4 {[%clk 0:00:05.1]} 77... Ke3 {[%clk 0:00:19.1]} 0-1

[Event "*** SCC Grand Prix: Titled Tuesday Blitz"]
[Site "Chess.com"]
[Date "2020.07.07"]
[Round "8"]
[White "viditchess"]
[Black "StephenDedalus83"]
[Result "1-0"]
[WhiteElo "3016"]
[BlackElo "2809"]
[TimeControl "180+1"]
[EndTime "11:37:54 PDT"]
[Termination "viditchess won by resignation"]

1. d4 {[%clk 0:03:00.9]} 1... Nf6 {[%clk 0:02:59]} 2. c4 {[%clk 0:03:01]} 2...
g6 {[%clk 0:02:59.6]} 3. Nc3 {[%clk 0:02:59.7]} 3... Bg7 {[%clk 0:03:00.2]} 4.
g3 {[%clk 0:02:59.7]} 4... O-O {[%clk 0:02:58.7]} 5. Bg2 {[%clk 0:02:59.9]} 5...
d6 {[%clk 0:02:59.3]} 6. Nf3 {[%clk 0:03:00.4]} 6... Nc6 {[%clk 0:02:59.9]} 7.
O-O {[%clk 0:03:00.3]} 7... e5 {[%clk 0:03:00.4]} 8. dxe5 {[%clk 0:02:59.9]}
8... Nxe5 {[%clk 0:02:58.2]} 9. b3 {[%clk 0:02:50.8]} 9... Nxf3+ {[%clk
0:02:21.7]} 10. Bxf3 {[%clk 0:02:51.7]} 10... Rb8 {[%clk 0:02:20.4]} 11. Bb2
{[%clk 0:02:47.2]} 11... Bh3 {[%clk 0:02:20.1]} 12. Re1 {[%clk 0:02:46.3]} 12...
a6 {[%clk 0:02:20.1]} 13. a4 {[%clk 0:02:20.6]} 13... Re8 {[%clk 0:02:14]} 14.
a5 {[%clk 0:02:19.1]} 14... Qd7 {[%clk 0:02:12.5]} 15. Qd2 {[%clk 0:02:16.5]}
15... Qf5 {[%clk 0:02:07.4]} 16. Nd5 {[%clk 0:01:58.9]} 16... Nxd5 {[%clk
0:02:05.8]} 17. Bxd5 {[%clk 0:01:59.8]} 17... Bxb2 {[%clk 0:02:00.8]} 18. Qxb2
{[%clk 0:02:00.7]} 18... Qe5 {[%clk 0:02:00.3]} 19. Qd2 {[%clk 0:01:58.2]} 19...
Kg7 {[%clk 0:01:59.3]} 20. Rac1 {[%clk 0:01:56.5]} 20... Re7 {[%clk 0:01:57.9]}
21. Rc3 {[%clk 0:01:53.5]} 21... c6 {[%clk 0:01:45.5]} 22. Re3 {[%clk
0:01:53.1]} 22... Qf6 {[%clk 0:01:43.9]} 23. Rxe7 {[%clk 0:01:49.1]} 23... Qxe7
{[%clk 0:01:43.8]} 24. Bf3 {[%clk 0:01:49.4]} 24... Rd8 {[%clk 0:01:41.2]} 25.
Rd1 {[%clk 0:01:48.4]} 25... Be6 {[%clk 0:01:40.6]} 26. Qb4 {[%clk 0:01:36.4]}
26... Rd7 {[%clk 0:01:38.2]} 27. h4 {[%clk 0:01:34.7]} 27... h5 {[%clk
0:01:33.6]} 28. Kg2 {[%clk 0:01:25.8]} 28... Bg4 {[%clk 0:01:33]} 29. Qc3+
{[%clk 0:01:22.2]} 29... f6 {[%clk 0:01:28.4]} 30. b4 {[%clk 0:01:04.7]} 30...
Bxf3+ {[%clk 0:01:25.8]} 31. exf3 {[%clk 0:01:03.5]} 31... d5 {[%clk 0:01:23.8]}
32. Re1 {[%clk 0:00:59.3]} 32... Qf7 {[%clk 0:01:19.8]} 33. cxd5 {[%clk
0:00:57.7]} 33... Qxd5 {[%clk 0:01:19.7]} 34. Re4 {[%clk 0:00:56.9]} 34... Qd6
{[%clk 0:01:16.1]} 35. Qe3 {[%clk 0:00:56.5]} 35... Rf7 {[%clk 0:01:12.8]} 36.
Rd4 {[%clk 0:00:53.2]} 36... Qe7 {[%clk 0:01:10.1]} 37. Qd2 {[%clk 0:00:52.3]}
37... c5 {[%clk 0:01:09.1]} 38. bxc5 {[%clk 0:00:48.2]} 38... Qxc5 {[%clk
0:01:09]} 39. Rd5 {[%clk 0:00:48.1]} 39... Qc6 {[%clk 0:01:07.9]} 40. Qd4 {[%clk
0:00:47.1]} 40... Qe6 {[%clk 0:01:05.1]} 41. Rd6 {[%clk 0:00:46.3]} 41... Qe5
{[%clk 0:01:04.3]} 42. Qxe5 {[%clk 0:00:45.2]} 42... fxe5 {[%clk 0:01:04.3]} 43.
Re6 {[%clk 0:00:45.9]} 43... Rc7 {[%clk 0:00:51.1]} 44. Rxe5 {[%clk 0:00:46.2]}
44... Kf6 {[%clk 0:00:51.1]} 45. Rd5 {[%clk 0:00:46.4]} 45... Rc6 {[%clk
0:00:51.2]} 46. g4 {[%clk 0:00:39.6]} 46... b6 {[%clk 0:00:50.1]} 47. axb6
{[%clk 0:00:39]} 47... Rxb6 {[%clk 0:00:49.4]} 48. Kg3 {[%clk 0:00:33.4]} 48...
Ke6 {[%clk 0:00:41.8]} 49. Ra5 {[%clk 0:00:30.6]} 49... Kf6 {[%clk 0:00:40.7]}
50. g5+ {[%clk 0:00:26.6]} 50... Ke6 {[%clk 0:00:39.1]} 51. f4 {[%clk
0:00:27.2]} 51... Rc6 {[%clk 0:00:38.9]} 52. f3 {[%clk 0:00:23.1]} 52... Rb6
{[%clk 0:00:36.5]} 53. Re5+ {[%clk 0:00:20.6]} 53... Kf7 {[%clk 0:00:36.3]} 54.
f5 {[%clk 0:00:20.7]} 54... gxf5 {[%clk 0:00:33.5]} 55. Rxf5+ {[%clk 0:00:21.6]}
55... Kg6 {[%clk 0:00:33.5]} 56. Ra5 {[%clk 0:00:22.2]} 56... Rc6 {[%clk
0:00:33.6]} 57. f4 {[%clk 0:00:22.3]} 57... Rc3+ {[%clk 0:00:33.4]} 58. Kf2
{[%clk 0:00:22.8]} 58... Rh3 {[%clk 0:00:28.9]} 59. Rxa6+ {[%clk 0:00:22.7]}
59... Kf5 {[%clk 0:00:28.9]} 60. Rf6+ {[%clk 0:00:22.6]} 60... Ke4 {[%clk
0:00:28.6]} 61. g6 {[%clk 0:00:21.4]} 61... Rxh4 {[%clk 0:00:28.6]} 62. f5
{[%clk 0:00:22]} 62... Rg4 {[%clk 0:00:27.9]} 63. Rf7 {[%clk 0:00:20.9]} 63...
h4 {[%clk 0:00:27.8]} 64. g7 {[%clk 0:00:21.5]} 64... h3 {[%clk 0:00:27.9]} 65.
f6 {[%clk 0:00:13.7]} 65... h2 {[%clk 0:00:27.1]} 66. Re7+ {[%clk 0:00:14.3]}
66... Kd5 {[%clk 0:00:08.3]} 67. Re1 {[%clk 0:00:14.3]} 67... Rf4+ {[%clk
0:00:06.7]} 68. Kg3 {[%clk 0:00:13.3]} 68... Rxf6 {[%clk 0:00:06.5]} 69. g8=Q+
{[%clk 0:00:13.6]} 1-0

[Event "*** SCC Grand Prix: Titled Tuesday Blitz"]
[Site "Chess.com"]
[Date "2020.07.07"]
[Round "8"]
[White "czasnaszachy"]
[Black "Joseacorrea"]
[Result "1-0"]
[WhiteElo "2246"]
[BlackElo "1932"]
[TimeControl "180+1"]
[EndTime "11:37:58 PDT"]
[Termination "czasnaszachy won on time"]

1. d4 {[%clk 0:02:51.7]} 1... Nf6 {[%clk 0:02:56.2]} 2. c4 {[%clk 0:02:51.7]}
2... e6 {[%clk 0:02:56.4]} 3. Nc3 {[%clk 0:02:51.7]} 3... d5 {[%clk 0:02:56.6]}
4. Nf3 {[%clk 0:02:49]} 4... c6 {[%clk 0:02:55.3]} 5. Bg5 {[%clk 0:02:46]} 5...
Be7 {[%clk 0:02:55.5]} 6. e3 {[%clk 0:02:45.9]} 6... O-O {[%clk 0:02:55.3]} 7.
Be2 {[%clk 0:02:43]} 7... h6 {[%clk 0:02:50.9]} 8. Bf4 {[%clk 0:02:38.8]} 8...
Bd6 {[%clk 0:02:49.4]} 9. Bxd6 {[%clk 0:02:37.3]} 9... Qxd6 {[%clk 0:02:49.3]}
10. O-O {[%clk 0:02:38]} 10... Nbd7 {[%clk 0:02:48.9]} 11. Rc1 {[%clk
0:02:37.3]} 11... Ne4 {[%clk 0:02:37]} 12. Nxe4 {[%clk 0:02:36.1]} 12... dxe4
{[%clk 0:02:37.1]} 13. Nd2 {[%clk 0:02:37]} 13... f5 {[%clk 0:02:37.2]} 14. a3
{[%clk 0:02:00.3]} 14... e5 {[%clk 0:02:33.5]} 15. d5 {[%clk 0:01:51.4]} 15...
cxd5 {[%clk 0:02:23.7]} 16. cxd5 {[%clk 0:01:49.7]} 16... Nb6 {[%clk 0:02:17.4]}
17. Nc4 {[%clk 0:01:36.8]} 17... Nxc4 {[%clk 0:02:17.1]} 18. Bxc4 {[%clk
0:01:25.1]} 18... f4 {[%clk 0:02:05.5]} 19. f3 {[%clk 0:00:59.3]} 19... exf3
{[%clk 0:01:42.7]} 20. Qxf3 {[%clk 0:00:37.2]} 20... Bd7 {[%clk 0:01:34.6]} 21.
e4 {[%clk 0:00:25.5]} 21... g5 {[%clk 0:01:14.1]} 22. Be2 {[%clk 0:00:25.1]}
22... Rac8 {[%clk 0:01:06]} 23. Qh5 {[%clk 0:00:22.3]} 23... Kg7 {[%clk
0:01:00.6]} 24. h4 {[%clk 0:00:21.6]} 24... Qb6+ {[%clk 0:00:53.6]} 25. Kh1
{[%clk 0:00:17.6]} 25... Qg6 {[%clk 0:00:34.4]} 26. Qxg6+ {[%clk 0:00:14.9]}
26... Kxg6 {[%clk 0:00:34.2]} 27. h5+ {[%clk 0:00:14.8]} 27... Kg7 {[%clk
0:00:33.6]} 28. Rc3 {[%clk 0:00:14.3]} 28... Rxc3 {[%clk 0:00:27.2]} 29. bxc3
{[%clk 0:00:14.2]} 29... Rc8 {[%clk 0:00:28.1]} 30. Rc1 {[%clk 0:00:14]} 30...
Be8 {[%clk 0:00:26]} 31. c4 {[%clk 0:00:13.4]} 31... Bd7 {[%clk 0:00:26.1]} 32.
Rb1 {[%clk 0:00:13.4]} 32... b6 {[%clk 0:00:24.8]} 33. Kg1 {[%clk 0:00:12.7]}
33... g4 {[%clk 0:00:24.8]} 34. Ra1 {[%clk 0:00:08.1]} 34... Kf6 {[%clk
0:00:24.7]} 35. a4 {[%clk 0:00:08.3]} 35... Kg5 {[%clk 0:00:24.5]} 36. a5 {[%clk
0:00:08.8]} 36... Kxh5 {[%clk 0:00:23.7]} 37. axb6 {[%clk 0:00:08.9]} 37... axb6
{[%clk 0:00:24.6]} 38. Ra6 {[%clk 0:00:08.8]} 38... Rb8 {[%clk 0:00:20.9]} 39.
Ra7 {[%clk 0:00:07.9]} 39... Be8 {[%clk 0:00:19.2]} 40. Re7 {[%clk 0:00:07.8]}
40... Kg5 {[%clk 0:00:17]} 41. Rxe5+ {[%clk 0:00:07.8]} 41... Kf6 {[%clk
0:00:16.8]} 42. Re6+ {[%clk 0:00:08.2]} 42... Kg5 {[%clk 0:00:17.1]} 43. Re5+
{[%clk 0:00:05.7]} 43... Kf6 {[%clk 0:00:16.9]} 44. Rf5+ {[%clk 0:00:06.3]}
44... Kg6 {[%clk 0:00:16.8]} 45. Rxf4 {[%clk 0:00:06.2]} 45... Bd7 {[%clk
0:00:17.1]} 46. Bxg4 {[%clk 0:00:05.9]} 46... Bxg4 {[%clk 0:00:16.7]} 47. Rxg4+
{[%clk 0:00:06.3]} 47... Kf6 {[%clk 0:00:17]} 48. Rh4 {[%clk 0:00:06.1]} 48...
Ke5 {[%clk 0:00:15.5]} 49. Rxh6 {[%clk 0:00:05.7]} 49... Kxe4 {[%clk 0:00:15.8]}
50. Rh4+ {[%clk 0:00:05.9]} 50... Ke5 {[%clk 0:00:15.8]} 51. Kf2 {[%clk
0:00:06.1]} 51... b5 {[%clk 0:00:16.2]} 52. cxb5 {[%clk 0:00:04.4]} 52... Rxb5
{[%clk 0:00:15.8]} 53. Rh5+ {[%clk 0:00:04.5]} 53... Kf6 {[%clk 0:00:15.1]} 54.
Kf3 {[%clk 0:00:03.2]} 54... Rb4 {[%clk 0:00:14.1]} 55. g3 {[%clk 0:00:02.6]}
55... Kg6 {[%clk 0:00:14.2]} 56. Re5 {[%clk 0:00:02.6]} 56... Kf6 {[%clk
0:00:14.2]} 57. Re4 {[%clk 0:00:03.1]} 57... Rb3+ {[%clk 0:00:13.5]} 58. Kf4
{[%clk 0:00:03.4]} 58... Rb5 {[%clk 0:00:13.7]} 59. Rd4 {[%clk 0:00:03.7]} 59...
Rb1 {[%clk 0:00:11.1]} 60. g4 {[%clk 0:00:04]} 60... Rf1+ {[%clk 0:00:12]} 61.
Kg3 {[%clk 0:00:04.2]} 61... Ke7 {[%clk 0:00:11.4]} 62. d6+ {[%clk 0:00:04]}
62... Kd7 {[%clk 0:00:11.4]} 63. Kh4 {[%clk 0:00:04.4]} 63... Rf6 {[%clk
0:00:10.5]} 64. Kg5 {[%clk 0:00:04.6]} 64... Rf1 {[%clk 0:00:08.3]} 65. Kg6
{[%clk 0:00:04.6]} 65... Rg1 {[%clk 0:00:04.4]} 66. g5 {[%clk 0:00:05]} 66...
Rg2 {[%clk 0:00:03.7]} 67. Kf6 {[%clk 0:00:05.5]} 67... Rf2+ {[%clk 0:00:03.7]}
68. Kg7 {[%clk 0:00:06]} 68... Rg2 {[%clk 0:00:02.9]} 69. g6 {[%clk 0:00:06.5]}
69... Rf2 {[%clk 0:00:02.9]} 70. Kh7 {[%clk 0:00:06.7]} 70... Rh2+ {[%clk
0:00:02.9]} 71. Kg8 {[%clk 0:00:07.2]} 71... Rg2 {[%clk 0:00:02.8]} 72. g7
{[%clk 0:00:07.6]} 72... Rf2 {[%clk 0:00:02.6]} 73. Rh4 {[%clk 0:00:06.9]} 73...
Kxd6 {[%clk 0:00:02]} 74. Kh8 {[%clk 0:00:07.2]} 1-0